[Event "GrandPrix_29.05"]
[Site "Chess.com"]
[Date "2020.05.29"]
[Round "8"]
[White "BlackBoarder"]
[Black "Firegrizzly"]
[Result "1-0"]
[WhiteElo "2164"]
[BlackElo "2148"]
[TimeControl "600+2"]
[EndTime "12:59:23 PDT"]
[Termination "BlackBoarder won by resignation"]

1. e4 {[%clk 0:10:00.5]} 1... c5 {[%clk 0:09:56.7]} 2. Nf3 {[%clk 0:10:01]} 2...
d6 {[%clk 0:09:56.9]} 3. c3 {[%clk 0:10:00.1]} 3... Nf6 {[%clk 0:09:53.7]} 4. h3
{[%clk 0:09:59.3]} 4... g6 {[%clk 0:09:44.8]} 5. Bd3 {[%clk 0:09:59.3]} 5... Bg7
{[%clk 0:09:44.5]} 6. Bc2 {[%clk 0:09:59.9]} 6... O-O {[%clk 0:09:39.8]} 7. O-O
{[%clk 0:10:00]} 7... Nc6 {[%clk 0:09:28]} 8. d4 {[%clk 0:10:00.6]} 8... cxd4
{[%clk 0:09:26.4]} 9. cxd4 {[%clk 0:10:02.5]} 9... d5 {[%clk 0:09:27.8]} 10. e5
{[%clk 0:10:03.1]} 10... Ne8 {[%clk 0:09:26.7]} 11. Nc3 {[%clk 0:10:01.3]} 11...
Nc7 {[%clk 0:09:26.4]} 12. Be3 {[%clk 0:09:54]} 12... b6 {[%clk 0:09:08.7]} 13.
Qd2 {[%clk 0:09:48.2]} 13... Ba6 {[%clk 0:09:05.8]} 14. Rfe1 {[%clk 0:09:42.5]}
14... Rc8 {[%clk 0:09:06.1]} 15. Bh6 {[%clk 0:09:37.6]} 15... Na5 {[%clk
0:09:04.5]} 16. Bxg7 {[%clk 0:09:21.2]} 16... Kxg7 {[%clk 0:09:04.5]} 17. b3
{[%clk 0:09:22.4]} 17... Ne6 {[%clk 0:09:00.7]} 18. Rac1 {[%clk 0:09:16.1]}
18... Rc7 {[%clk 0:08:54.1]} 19. h4 {[%clk 0:08:56.9]} 19... h6 {[%clk
0:08:47.8]} 20. h5 {[%clk 0:08:50.7]} 20... g5 {[%clk 0:08:47.2]} 21. Bf5 {[%clk
0:08:43.8]} 21... Bc8 {[%clk 0:08:45.5]} 22. Ne2 {[%clk 0:07:33.3]} 22... Bd7
{[%clk 0:08:30.9]} 23. Nh2 {[%clk 0:07:06.2]} 23... Rxc1 {[%clk 0:08:17.5]} 24.
Rxc1 {[%clk 0:07:01]} 24... f6 {[%clk 0:07:57.7]} 25. Ng4 {[%clk 0:05:41.8]}
25... Qe8 {[%clk 0:07:31.2]} 26. exf6+ {[%clk 0:05:23.6]} 26... exf6 {[%clk
0:07:29.8]} 27. Ng3 {[%clk 0:05:23]} 27... Qd8 {[%clk 0:06:34.6]} 28. Qb4 {[%clk
0:04:15.8]} 28... Nf4 {[%clk 0:05:16.7]} 29. Qd6 {[%clk 0:03:17.1]} 29... Be6
{[%clk 0:03:30.6]} 30. Rc7+ {[%clk 0:02:39.8]} 30... Bf7 {[%clk 0:03:26.9]} 31.
Rd7 {[%clk 0:02:23.6]} 31... Nb7 {[%clk 0:03:26.7]} 32. Qa3 {[%clk 0:01:32.7]}
32... Qb8 {[%clk 0:03:03.5]} 33. Qe7 {[%clk 0:01:25.2]} 1-0

[Event "GrandPrix_29.05"]
[Site "Chess.com"]
[Date "2020.05.29"]
[Round "8"]
[White "eristeski7"]
[Black "AlexPapasimakopoulos"]
[Result "0-1"]
[WhiteElo "2121"]
[BlackElo "2276"]
[TimeControl "600+2"]
[EndTime "12:59:26 PDT"]
[Termination "AlexPapasimakopoulos won by checkmate"]

1. e4 {[%clk 0:10:01.9]} 1... e6 {[%clk 0:10:00.7]} 2. d4 {[%clk 0:10:02.3]}
2... d5 {[%clk 0:10:02.2]} 3. Nd2 {[%clk 0:10:04]} 3... Nf6 {[%clk 0:10:03.3]}
4. e5 {[%clk 0:10:04.6]} 4... Nfd7 {[%clk 0:10:05]} 5. Bd3 {[%clk 0:10:06.2]}
5... c5 {[%clk 0:10:06.5]} 6. c3 {[%clk 0:10:07.9]} 6... Nc6 {[%clk 0:10:08.2]}
7. Ngf3 {[%clk 0:10:08.2]} 7... a5 {[%clk 0:10:08.7]} 8. a4 {[%clk 0:09:50]}
8... cxd4 {[%clk 0:10:09.2]} 9. cxd4 {[%clk 0:09:49.6]} 9... Nb4 {[%clk
0:10:10.6]} 10. Bb5 {[%clk 0:09:41.1]} 10... Be7 {[%clk 0:10:12.1]} 11. O-O
{[%clk 0:09:38.5]} 11... O-O {[%clk 0:10:13.7]} 12. Nb3 {[%clk 0:09:33.2]} 12...
Nb6 {[%clk 0:10:09.3]} 13. Qe2 {[%clk 0:09:29.3]} 13... Bd7 {[%clk 0:10:10.2]}
14. Bxd7 {[%clk 0:08:59.7]} 14... Qxd7 {[%clk 0:10:12.1]} 15. Bg5 {[%clk
0:08:57.7]} 15... Bxg5 {[%clk 0:10:10.6]} 16. Nxg5 {[%clk 0:08:55.9]} 16... h6
{[%clk 0:10:12.1]} 17. Nc5 {[%clk 0:08:52.8]} 17... Qc6 {[%clk 0:10:07.4]} 18.
Nf3 {[%clk 0:08:50.7]} 18... Nd7 {[%clk 0:09:58.2]} 19. Rfc1 {[%clk 0:08:47.8]}
19... Rfc8 {[%clk 0:09:51.9]} 20. b3 {[%clk 0:08:14]} 20... Nf8 {[%clk
0:09:33.2]} 21. Nd3 {[%clk 0:07:30]} 21... Qa6 {[%clk 0:09:28]} 22. Nfe1 {[%clk
0:07:20.7]} 22... Ng6 {[%clk 0:09:21.3]} 23. Qd2 {[%clk 0:07:16.9]} 23... Nxd3
{[%clk 0:09:19.4]} 24. Qxd3 {[%clk 0:06:50.4]} 24... Qb6 {[%clk 0:09:20.4]} 25.
g3 {[%clk 0:06:47.4]} 25... Ne7 {[%clk 0:09:22]} 26. Kg2 {[%clk 0:06:35.6]}
26... Nc6 {[%clk 0:09:22.4]} 27. Nf3 {[%clk 0:06:34.9]} 27... Nb4 {[%clk
0:09:23.7]} 28. Qd2 {[%clk 0:06:34.4]} 28... Qa6 {[%clk 0:09:21.4]} 29. Rc3
{[%clk 0:06:15.6]} 29... Rxc3 {[%clk 0:09:07.6]} 30. Qxc3 {[%clk 0:06:17.5]}
30... b6 {[%clk 0:09:09.2]} 31. Qd2 {[%clk 0:05:39.6]} 31... Rc8 {[%clk
0:09:05.4]} 32. Rc1 {[%clk 0:05:39.7]} 32... Rxc1 {[%clk 0:09:00.5]} 33. Qxc1
{[%clk 0:05:41.6]} 33... Qe2 {[%clk 0:08:49.4]} 34. Qc8+ {[%clk 0:03:43.7]}
34... Kh7 {[%clk 0:08:48.3]} 35. Qc7 {[%clk 0:03:44.4]} 35... Nd3 {[%clk
0:08:19.6]} 36. Qxf7 {[%clk 0:03:44]} 36... Qxf2+ {[%clk 0:08:16]} 37. Kh3
{[%clk 0:03:41]} 37... Qf1+ {[%clk 0:08:15.9]} 38. Kh4 {[%clk 0:03:39.6]} 38...
Qe2 {[%clk 0:08:13]} 39. Kg4 {[%clk 0:02:02.5]} 39... Nf2+ {[%clk 0:07:37.5]}
40. Kh5 {[%clk 0:02:01.5]} 40... Qe4 {[%clk 0:07:25.5]} 41. h3 {[%clk
0:00:57.6]} 41... Nxh3 {[%clk 0:07:07.3]} 42. Nh4 {[%clk 0:00:55.9]} 42... Ng5
{[%clk 0:05:38.5]} 43. Qg6+ {[%clk 0:00:55.2]} 43... Qxg6+ {[%clk 0:05:37.2]}
44. Nxg6 {[%clk 0:00:57.1]} 44... Kg8 {[%clk 0:05:38.1]} 45. Ne7+ {[%clk
0:00:57.1]} 45... Kf7 {[%clk 0:05:37.7]} 46. Nc8 {[%clk 0:00:59]} 46... Nf3
{[%clk 0:05:36.1]} 47. Nxb6 {[%clk 0:00:59.5]} 47... Nxd4 {[%clk 0:05:37.6]} 48.
b4 {[%clk 0:00:57.7]} 48... axb4 {[%clk 0:05:38.7]} 49. a5 {[%clk 0:00:57.9]}
49... b3 {[%clk 0:05:38.4]} 50. a6 {[%clk 0:00:58.7]} 50... Nc6 {[%clk
0:05:39.7]} 51. Na4 {[%clk 0:00:59.3]} 51... d4 {[%clk 0:05:38]} 52. Kg4 {[%clk
0:00:58.6]} 52... Nxe5+ {[%clk 0:05:39.1]} 53. Kf4 {[%clk 0:00:59.2]} 53... Nc6
{[%clk 0:05:40.7]} 54. Ke4 {[%clk 0:01:01.1]} 54... e5 {[%clk 0:05:41.9]} 55.
Nb2 {[%clk 0:00:59.7]} 55... Ke6 {[%clk 0:05:41.7]} 56. Nd3 {[%clk 0:00:56.7]}
56... Kd6 {[%clk 0:05:40.5]} 57. Nxe5 {[%clk 0:00:55.3]} 57... Nxe5 {[%clk
0:05:21.2]} 58. a7 {[%clk 0:00:54.4]} 58... b2 {[%clk 0:05:22.7]} 59. a8=Q
{[%clk 0:00:55.8]} 59... b1=Q+ {[%clk 0:05:24.1]} 60. Kxd4 {[%clk 0:00:56]}
60... Qd3# {[%clk 0:05:21.2]} 0-1

[Event "GrandPrix_29.05"]
[Site "Chess.com"]
[Date "2020.05.29"]
[Round "8"]
[White "Belka1989"]
[Black "Todorovic1991"]
[Result "1-0"]
[WhiteElo "2035"]
[BlackElo "1713"]
[TimeControl "600+2"]
[EndTime "12:59:28 PDT"]
[Termination "Belka1989 won by checkmate"]

1. d4 {[%clk 0:10:01.9]} 1... f5 {[%clk 0:09:59.5]} 2. e4 {[%clk 0:09:57.6]}
2... fxe4 {[%clk 0:09:59]} 3. Nc3 {[%clk 0:09:57.7]} 3... Nf6 {[%clk 0:09:59.8]}
4. g4 {[%clk 0:09:56.3]} 4... d5 {[%clk 0:09:43.4]} 5. g5 {[%clk 0:09:55.8]}
5... Ng8 {[%clk 0:09:44.3]} 6. f3 {[%clk 0:09:55.6]} 6... e3 {[%clk 0:09:33.7]}
7. Bxe3 {[%clk 0:09:54.1]} 7... Bf5 {[%clk 0:09:33.4]} 8. Bd3 {[%clk 0:09:53]}
8... Qd7 {[%clk 0:09:28.1]} 9. f4 {[%clk 0:09:48.9]} 9... Nc6 {[%clk 0:09:23.8]}
10. Nf3 {[%clk 0:09:49.1]} 10... Bxd3 {[%clk 0:09:20.4]} 11. Qxd3 {[%clk
0:09:48.8]} 11... e6 {[%clk 0:09:21.8]} 12. O-O-O {[%clk 0:09:32.1]} 12... O-O-O
{[%clk 0:09:21.6]} 13. Ne5 {[%clk 0:09:28.4]} 13... Nxe5 {[%clk 0:09:21]} 14.
fxe5 {[%clk 0:09:30.3]} 14... Ne7 {[%clk 0:09:21.6]} 15. Ne2 {[%clk 0:09:30.2]}
15... Nf5 {[%clk 0:09:21.6]} 16. Ng3 {[%clk 0:09:31.2]} 16... Nh4 {[%clk
0:08:55.1]} 17. Rhf1 {[%clk 0:09:25.1]} 17... g6 {[%clk 0:08:36.5]} 18. Rf6
{[%clk 0:09:15.8]} 18... Be7 {[%clk 0:08:30.3]} 19. Rdf1 {[%clk 0:09:16.5]}
19... Bxf6 {[%clk 0:08:30.7]} 20. exf6 {[%clk 0:09:17.9]} 20... Nf5 {[%clk
0:08:31]} 21. Nxf5 {[%clk 0:09:16.5]} 21... exf5 {[%clk 0:08:31.2]} 22. Bf4
{[%clk 0:09:16.8]} 22... Rhe8 {[%clk 0:08:29.1]} 23. Be5 {[%clk 0:09:17.5]}
23... Re6 {[%clk 0:08:18.4]} 24. Qg3 {[%clk 0:09:11.6]} 24... Rde8 {[%clk
0:08:13.8]} 25. b3 {[%clk 0:09:08.3]} 25... b6 {[%clk 0:08:14.3]} 26. Kb2 {[%clk
0:09:08.3]} 26... Kb7 {[%clk 0:08:15.3]} 27. a4 {[%clk 0:09:08.4]} 27... a5
{[%clk 0:08:15.6]} 28. c3 {[%clk 0:09:08.5]} 28... Rf8 {[%clk 0:07:43.1]} 29. h4
{[%clk 0:09:06.6]} 29... Rf7 {[%clk 0:07:42.4]} 30. h5 {[%clk 0:09:06.8]} 30...
b5 {[%clk 0:07:43.4]} 31. axb5 {[%clk 0:09:03.6]} 31... Qxb5 {[%clk 0:07:43.4]}
32. Qf3 {[%clk 0:08:53.8]} 32... Rb6 {[%clk 0:07:41.7]} 33. Qd1 {[%clk
0:08:49.8]} 33... a4 {[%clk 0:07:20.5]} 34. b4 {[%clk 0:08:48.8]} 34... a3+
{[%clk 0:07:21.5]} 35. Ka1 {[%clk 0:08:30]} 35... Qc4 {[%clk 0:07:17.6]} 36. Rf3
{[%clk 0:08:29.4]} 36... Ra6 {[%clk 0:07:09.2]} 37. Qd3 {[%clk 0:08:19.8]} 37...
Qb3 {[%clk 0:06:58.7]} 38. Qb1 {[%clk 0:08:14.7]} 38... Qa4 {[%clk 0:06:43.5]}
39. Ka2 {[%clk 0:08:11.7]} 39... Qb5 {[%clk 0:06:33.2]} 40. Rf2 {[%clk
0:08:10.3]} 40... Kc6 {[%clk 0:06:08.1]} 41. Qb3 {[%clk 0:08:07.7]} 41... Qd3
{[%clk 0:05:57.6]} 42. h6 {[%clk 0:07:43.7]} 42... Rd7 {[%clk 0:05:39.9]} 43.
Rc2 {[%clk 0:07:39.6]} 43... Kb5 {[%clk 0:05:39.3]} 44. Rc1 {[%clk 0:05:52.9]}
44... c6 {[%clk 0:05:16.5]} 45. Rc2 {[%clk 0:05:52]} 45... Qf1 {[%clk
0:04:51.7]} 46. Qb1 {[%clk 0:04:57.2]} 46... Qc4+ {[%clk 0:04:09.3]} 47. Qb3
{[%clk 0:04:55.3]} 47... Qd3 {[%clk 0:04:05.8]} 48. Rc1 {[%clk 0:04:51.2]} 48...
Rda7 {[%clk 0:04:01.6]} 49. Rc2 {[%clk 0:04:48.8]} 49... Qf1 {[%clk 0:04:01]}
50. Bd6 {[%clk 0:04:42]} 50... f4 {[%clk 0:03:45.8]} 51. Bc5 {[%clk 0:04:33.8]}
51... Rf7 {[%clk 0:03:42.3]} 52. c4+ {[%clk 0:03:31.1]} 52... dxc4 {[%clk
0:03:41.1]} 53. Qc3 {[%clk 0:03:30.6]} 53... f3 {[%clk 0:03:19.6]} 54. d5 {[%clk
0:03:25]} 54... Qd3 {[%clk 0:03:10.3]} 55. d6 {[%clk 0:03:17.5]} 55... Qf5
{[%clk 0:02:48.1]} 56. Qxc4+ {[%clk 0:03:15.3]} 56... Ka4 {[%clk 0:02:48.1]} 57.
Qxa6# {[%clk 0:03:14.7]} 1-0

[Event "GrandPrix_29.05"]
[Site "Chess.com"]
[Date "2020.05.29"]
[Round "8"]
[White "crazyboy26"]
[Black "Fandorine"]
[Result "0-1"]
[WhiteElo "2342"]
[BlackElo "2506"]
[TimeControl "600+2"]
[EndTime "12:59:29 PDT"]
[Termination "Fandorine won by resignation"]

1. e4 {[%clk 0:10:01.9]} 1... c5 {[%clk 0:09:53.6]} 2. Nf3 {[%clk 0:10:02]} 2...
d6 {[%clk 0:09:54.8]} 3. c3 {[%clk 0:10:01.3]} 3... Nf6 {[%clk 0:09:53.6]} 4. h3
{[%clk 0:10:01.5]} 4... g6 {[%clk 0:09:54.3]} 5. Bd3 {[%clk 0:10:01]} 5... Bg7
{[%clk 0:09:55.7]} 6. Bc2 {[%clk 0:10:01.5]} 6... O-O {[%clk 0:09:57]} 7. d4
{[%clk 0:10:02.1]} 7... Nbd7 {[%clk 0:09:50.4]} 8. O-O {[%clk 0:09:59.7]} 8...
b6 {[%clk 0:09:50.5]} 9. Re1 {[%clk 0:09:35.6]} 9... Bb7 {[%clk 0:09:50.6]} 10.
Nbd2 {[%clk 0:09:30.2]} 10... Qc7 {[%clk 0:09:45.6]} 11. Nf1 {[%clk 0:09:05.4]}
11... cxd4 {[%clk 0:09:28.9]} 12. cxd4 {[%clk 0:09:05.8]} 12... Rac8 {[%clk
0:09:30.7]} 13. Bd3 {[%clk 0:09:01.9]} 13... e5 {[%clk 0:09:31.9]} 14. d5 {[%clk
0:08:54.6]} 14... Nh5 {[%clk 0:09:19.8]} 15. Ne3 {[%clk 0:07:27.9]} 15... Nf4
{[%clk 0:09:06.9]} 16. Bf1 {[%clk 0:07:17.1]} 16... Nc5 {[%clk 0:09:03.1]} 17.
g3 {[%clk 0:07:12.2]} 17... Nh5 {[%clk 0:09:02.5]} 18. Nd2 {[%clk 0:07:10.6]}
18... a5 {[%clk 0:09:00.8]} 19. b3 {[%clk 0:06:55]} 19... Nf6 {[%clk 0:08:59.3]}
20. Qf3 {[%clk 0:06:25.2]} 20... Nxd5 {[%clk 0:08:30.5]} 21. exd5 {[%clk
0:05:36.9]} 21... e4 {[%clk 0:08:31.5]} 22. Nxe4 {[%clk 0:05:36.3]} 22... Nxe4
{[%clk 0:08:30.1]} 23. Ba3 {[%clk 0:05:18.7]} 23... Nd2 {[%clk 0:08:23.8]} 24.
Qf4 {[%clk 0:05:05.1]} 24... Be5 {[%clk 0:08:23.9]} 25. Qg4 {[%clk 0:04:58.5]}
25... f5 {[%clk 0:08:11.3]} 26. Qe2 {[%clk 0:04:59]} 26... Nxf1 {[%clk
0:08:09.5]} 27. Rxf1 {[%clk 0:04:56.1]} 27... Bxa1 {[%clk 0:08:09.3]} 28. Rxa1
{[%clk 0:04:54.7]} 28... f4 {[%clk 0:08:07.3]} 29. Ng4 {[%clk 0:04:36.1]} 29...
Rce8 {[%clk 0:07:28.3]} 30. Bb2 {[%clk 0:02:47.7]} 30... Qg7 {[%clk 0:06:18.6]}
31. Qd2 {[%clk 0:02:47.7]} 31... Re5 {[%clk 0:06:07.1]} 32. gxf4 {[%clk
0:02:25.9]} 32... Rxd5 {[%clk 0:06:07.2]} 33. Qe2 {[%clk 0:02:24]} 33... Rd4
{[%clk 0:06:08.3]} 34. Rc1 {[%clk 0:01:56.5]} 34... h5 {[%clk 0:05:25.6]} 35.
Qe6+ {[%clk 0:01:41.8]} 35... Kh8 {[%clk 0:05:26.6]} 36. Ne3 {[%clk 0:01:36.8]}
36... Rfxf4 {[%clk 0:05:24.8]} 37. Qe8+ {[%clk 0:01:00.3]} 37... Kh7 {[%clk
0:04:53.5]} 38. Rc4 {[%clk 0:00:57.4]} 38... Rxc4 {[%clk 0:04:43.7]} 39. Nxc4
{[%clk 0:00:51.9]} 39... Qf8 {[%clk 0:04:30.3]} 40. Qd7+ {[%clk 0:00:33.9]}
40... Rf7 {[%clk 0:04:30.2]} 41. Qe6 {[%clk 0:00:22.3]} 41... Rxf2 {[%clk
0:04:30.6]} 0-1

[Event "GrandPrix_29.05"]
[Site "Chess.com"]
[Date "2020.05.29"]
[Round "8"]
[White "GMMarcinDziuba"]
[Black "MiroVlasenko"]
[Result "1-0"]
[WhiteElo "2532"]
[BlackElo "2531"]
[TimeControl "600+2"]
[EndTime "12:59:38 PDT"]
[Termination "GMMarcinDziuba won by resignation"]

1. Nf3 {[%clk 0:10:01.9]} 1... Nf6 {[%clk 0:09:56.9]} 2. d4 {[%clk 0:10:02]}
2... b6 {[%clk 0:09:55.9]} 3. c4 {[%clk 0:10:02.1]} 3... e6 {[%clk 0:09:56.4]}
4. Bf4 {[%clk 0:09:57.4]} 4... Bb4+ {[%clk 0:09:47.9]} 5. Nbd2 {[%clk
0:09:56.2]} 5... Bb7 {[%clk 0:09:41.6]} 6. a3 {[%clk 0:09:52.8]} 6... Bxd2+
{[%clk 0:09:39.1]} 7. Nxd2 {[%clk 0:09:46.4]} 7... d6 {[%clk 0:09:36.7]} 8. e3
{[%clk 0:09:38.3]} 8... Nbd7 {[%clk 0:09:13.9]} 9. h3 {[%clk 0:09:17.6]} 9... e5
{[%clk 0:09:04.5]} 10. dxe5 {[%clk 0:09:14.8]} 10... Nxe5 {[%clk 0:08:37.4]} 11.
Qc2 {[%clk 0:09:15.2]} 11... O-O {[%clk 0:08:31.6]} 12. O-O-O {[%clk 0:08:48.9]}
12... Qe7 {[%clk 0:08:30.2]} 13. f3 {[%clk 0:08:07.3]} 13... Ng6 {[%clk
0:07:45.4]} 14. Bd3 {[%clk 0:07:39.7]} 14... Nxf4 {[%clk 0:07:33.4]} 15. exf4
{[%clk 0:07:41.6]} 15... d5 {[%clk 0:07:18.7]} 16. Rhe1 {[%clk 0:07:24.4]} 16...
Qd6 {[%clk 0:07:06.1]} 17. Re5 {[%clk 0:07:20]} 17... g6 {[%clk 0:06:42.6]} 18.
cxd5 {[%clk 0:07:06.1]} 18... Rae8 {[%clk 0:05:47.5]} 19. Nc4 {[%clk 0:06:08.2]}
19... Qd8 {[%clk 0:05:37.1]} 20. Rxe8 {[%clk 0:05:55.2]} 20... Rxe8 {[%clk
0:05:29.5]} 21. Ne5 {[%clk 0:05:56.2]} 21... Nxd5 {[%clk 0:05:10.1]} 22. Be4
{[%clk 0:04:10.6]} 22... Qd6 {[%clk 0:04:01.6]} 23. Kb1 {[%clk 0:03:34]} 23...
Rd8 {[%clk 0:03:58.2]} 24. Bxd5 {[%clk 0:03:10.9]} 24... Bxd5 {[%clk 0:03:55.2]}
25. Ka1 {[%clk 0:03:10.1]} 25... f6 {[%clk 0:03:26.8]} 26. Ng4 {[%clk
0:03:09.7]} 26... Kg7 {[%clk 0:03:24]} 27. f5 {[%clk 0:03:08.4]} 27... c6 {[%clk
0:03:09.6]} 28. h4 {[%clk 0:02:51.2]} 28... Qf4 {[%clk 0:02:59.3]} 29. fxg6
{[%clk 0:02:48.5]} 29... hxg6 {[%clk 0:02:54.5]} 30. Re1 {[%clk 0:02:49.6]}
30... Bf7 {[%clk 0:02:15.1]} 31. Qxc6 {[%clk 0:02:39.3]} 31... Qd4 {[%clk
0:02:10]} 32. Qc1 {[%clk 0:02:09.1]} 32... Qd5 {[%clk 0:02:03.4]} 33. Qh6+
{[%clk 0:02:08.4]} 1-0

[Event "GrandPrix_29.05"]
[Site "Chess.com"]
[Date "2020.05.29"]
[Round "8"]
[White "Dyadya81"]
[Black "GM_LOADING"]
[Result "0-1"]
[WhiteElo "2150"]
[BlackElo "2339"]
[TimeControl "600+2"]
[EndTime "12:59:38 PDT"]
[Termination "GM_LOADING won by checkmate"]

1. e4 {[%clk 0:10:01.9]} 1... e5 {[%clk 0:10:00.3]} 2. Nf3 {[%clk 0:10:02.7]}
2... Nc6 {[%clk 0:10:01.5]} 3. d4 {[%clk 0:10:03.4]} 3... exd4 {[%clk
0:10:02.1]} 4. Nxd4 {[%clk 0:10:05.3]} 4... Nf6 {[%clk 0:10:03.1]} 5. Nc3 {[%clk
0:10:05.5]} 5... Bb4 {[%clk 0:10:03.2]} 6. Nxc6 {[%clk 0:10:06.9]} 6... bxc6
{[%clk 0:10:05.1]} 7. Bd3 {[%clk 0:10:07.9]} 7... O-O {[%clk 0:10:05.6]} 8. O-O
{[%clk 0:10:08.7]} 8... d5 {[%clk 0:10:07.1]} 9. exd5 {[%clk 0:10:10]} 9... cxd5
{[%clk 0:10:08.4]} 10. Bg5 {[%clk 0:10:10.6]} 10... c6 {[%clk 0:10:07.2]} 11.
Na4 {[%clk 0:10:10.4]} 11... h6 {[%clk 0:09:55]} 12. Bh4 {[%clk 0:10:11.1]}
12... Bd6 {[%clk 0:09:52]} 13. Re1 {[%clk 0:10:01.6]} 13... Rb8 {[%clk
0:09:52.2]} 14. c3 {[%clk 0:09:59.7]} 14... c5 {[%clk 0:08:54.6]} 15. Bc2 {[%clk
0:09:53.3]} 15... Bd7 {[%clk 0:08:45.7]} 16. Rb1 {[%clk 0:09:19.5]} 16... g5
{[%clk 0:05:41.5]} 17. Bg3 {[%clk 0:09:12.3]} 17... Bxg3 {[%clk 0:05:41.5]} 18.
hxg3 {[%clk 0:09:09.3]} 18... Bxa4 {[%clk 0:05:42.4]} 19. Bxa4 {[%clk
0:09:08.5]} 19... Ne4 {[%clk 0:05:43.6]} 20. Bc2 {[%clk 0:08:50.3]} 20... f5
{[%clk 0:05:17.9]} 21. Qd3 {[%clk 0:08:43]} 21... Qd6 {[%clk 0:03:54.1]} 22. c4
{[%clk 0:08:35.3]} 22... d4 {[%clk 0:03:48.3]} 23. g4 {[%clk 0:08:33.8]} 23...
Qf4 {[%clk 0:01:53.7]} 24. Re2 {[%clk 0:08:32.2]} 24... Rxb2 {[%clk 0:00:36.6]}
25. Rxb2 {[%clk 0:08:20.1]} 25... Qc1+ {[%clk 0:00:37.2]} 26. Kh2 {[%clk
0:08:21.5]} 26... Qxb2 {[%clk 0:00:35.1]} 27. gxf5 {[%clk 0:08:08.3]} 27... Nf6
{[%clk 0:00:31.2]} 28. Re7 {[%clk 0:07:27]} 28... Qc1 {[%clk 0:00:23.3]} 29. Qe2
{[%clk 0:07:25.5]} 29... Qf4+ {[%clk 0:00:09.3]} 30. g3 {[%clk 0:07:26.7]} 30...
Qd6 {[%clk 0:00:10.5]} 31. Re6 {[%clk 0:07:23.7]} 31... Qc7 {[%clk 0:00:07.8]}
32. Bd3 {[%clk 0:07:13.6]} 32... Rf7 {[%clk 0:00:08.9]} 33. Qf3 {[%clk 0:07:10]}
33... Kg7 {[%clk 0:00:09.3]} 34. Kg2 {[%clk 0:07:02.5]} 34... Re7 {[%clk
0:00:09.5]} 35. Kf1 {[%clk 0:06:53.8]} 35... Qb7 {[%clk 0:00:06.7]} 36. Be4
{[%clk 0:06:39.5]} 36... Qc7 {[%clk 0:00:05.2]} 37. Bd5 {[%clk 0:06:28.3]} 37...
Rxe6 {[%clk 0:00:05.6]} 38. fxe6 {[%clk 0:06:28.2]} 38... Qe5 {[%clk 0:00:06.9]}
39. Kg2 {[%clk 0:06:23.6]} 39... g4 {[%clk 0:00:07.6]} 40. Qf4 {[%clk
0:06:10.3]} 40... Qxf4 {[%clk 0:00:08.4]} 41. gxf4 {[%clk 0:06:12.2]} 41... Kf8
{[%clk 0:00:08.5]} 42. f5 {[%clk 0:06:11.5]} 42... Ke7 {[%clk 0:00:09.6]} 43. f3
{[%clk 0:06:07.1]} 43... gxf3+ {[%clk 0:00:08.8]} 44. Kxf3 {[%clk 0:06:08.1]}
44... Nxd5 {[%clk 0:00:08.1]} 45. cxd5 {[%clk 0:06:09]} 45... c4 {[%clk
0:00:09.6]} 46. Ke4 {[%clk 0:06:06.7]} 46... c3 {[%clk 0:00:10.9]} 47. Ke5
{[%clk 0:05:57.4]} 47... c2 {[%clk 0:00:11.2]} 48. d6+ {[%clk 0:05:43.8]} 48...
Kd8 {[%clk 0:00:10.5]} 49. Kf6 {[%clk 0:05:30.3]} 49... c1=Q {[%clk 0:00:10.7]}
50. Kf7 {[%clk 0:05:31.3]} 50... Qe3 {[%clk 0:00:09.4]} 51. f6 {[%clk
0:05:29.8]} 51... d3 {[%clk 0:00:08.3]} 52. e7+ {[%clk 0:05:30.4]} 52... Kd7
{[%clk 0:00:09.2]} 53. Kf8 {[%clk 0:05:32.3]} 53... Qe5 {[%clk 0:00:08.8]} 54.
f7 {[%clk 0:05:33.6]} 54... Qh8# {[%clk 0:00:09.7]} 0-1